[Event "Titled Tuesday Blitz March 01 Late 2022"]
[White "Iskusnyh, Sergei"]
[Black "Riazantsev, Alexander"]
[WhiteFideId "4120027"]
[BlackFideId "4125029"]
[WhiteElo "2492"]
[BlackElo "2595"]
[Result "0-1"]
[Round "05"]
[TimeControl "180+1"]
[Date "2022.03.01"]
[WhiteClock "0:00:02"]
[BlackClock "0:00:21"]

1. d4 {[%clk 0:03:00]}  Nf6 {[%clk 0:02:57]} 2. c4 {[%clk 0:03:01]}  e6 {[%clk 0:02:57]} 3. g3 {[%clk 0:03:01]}  d5 {[%clk 0:02:54]} 4. Bg2 {[%clk 0:03:00]}  Bb4+ {[%clk 0:02:49]} 5. Nd2 {[%clk 0:02:56]}  O-O {[%clk 0:02:48]} 6. Nf3 {[%clk 0:02:56]}  b6 {[%clk 0:02:48]} 7. O-O {[%clk 0:02:55]}  Bb7 {[%clk 0:02:48]} 8. b3 {[%clk 0:02:53]}  a5 {[%clk 0:02:46]} 9. a3 {[%clk 0:02:40]}  Bd6 {[%clk 0:02:46]} 10. Bb2 {[%clk 0:02:40]}  Nbd7 {[%clk 0:02:45]} 11. cxd5 {[%clk 0:02:28]}  Bxd5 {[%clk 0:02:42]} 12. Qc2 {[%clk 0:02:20]}  Bb7 {[%clk 0:02:37]} 13. Rfd1 {[%clk 0:02:12]}  c5 {[%clk 0:02:21]} 14. dxc5 {[%clk 0:02:12]}  Bxc5 {[%clk 0:02:21]} 15. Ng5 {[%clk 0:01:31]}  Bxg2 {[%clk 0:02:19]} 16. Kxg2 {[%clk 0:01:32]}  h6 {[%clk 0:02:10]} 17. Nge4 {[%clk 0:01:29]}  Qe7 {[%clk 0:01:56]} 18. Nxf6+ {[%clk 0:01:20]}  Nxf6 {[%clk 0:01:56]} 19. Bxf6 {[%clk 0:01:14]}  Qxf6 {[%clk 0:01:48]} 20. Ne4 {[%clk 0:01:13]}  Qe7 {[%clk 0:01:44]} 21. Nxc5 {[%clk 0:01:13]}  Rac8 {[%clk 0:01:41]} 22. b4 {[%clk 0:01:10]}  bxc5 {[%clk 0:01:21]} 23. bxa5 {[%clk 0:01:06]}  Ra8 {[%clk 0:01:21]} 24. Qc3 {[%clk 0:00:55]}  Qc7 {[%clk 0:01:21]} 25. a4 {[%clk 0:00:47]}  Rxa5 {[%clk 0:01:21]} 26. Rdb1 {[%clk 0:00:44]}  Rfa8 {[%clk 0:01:19]} 27. Qc2 {[%clk 0:00:28]}  h5 {[%clk 0:01:06]} 28. h4 {[%clk 0:00:26]}  g6 {[%clk 0:01:05]} 29. Kh2 {[%clk 0:00:16]}  Qc6 {[%clk 0:01:02]} 30. Rb5 {[%clk 0:00:15]}  Qxb5 {[%clk 0:00:51]} 31. axb5 {[%clk 0:00:14]}  Rxa1 {[%clk 0:00:52]} 32. Qxc5 {[%clk 0:00:14]}  Rb1 {[%clk 0:00:44]} 33. g4 {[%clk 0:00:11]}  Rb8 {[%clk 0:00:42]} 34. gxh5 {[%clk 0:00:10]}  R1xb5 {[%clk 0:00:39]} 35. Qd6 {[%clk 0:00:09]}  gxh5 {[%clk 0:00:39]} 36. Qg3+ {[%clk 0:00:07]}  Kh7 {[%clk 0:00:37]} 37. Qf3 {[%clk 0:00:07]}  Rf5 {[%clk 0:00:35]} 38. Qg3 {[%clk 0:00:06]}  Rg8 {[%clk 0:00:35]} 39. Qe3 {[%clk 0:00:06]}  Rg4 {[%clk 0:00:35]} 40. f3 {[%clk 0:00:05]}  Rxh4+ {[%clk 0:00:34]} 41. Kg3 {[%clk 0:00:06]}  Rc4 {[%clk 0:00:31]} 42. Qa7 {[%clk 0:00:06]}  Rc8 {[%clk 0:00:29]} 43. e4 {[%clk 0:00:05]}  Rg8+ {[%clk 0:00:29]} 44. Kf2 {[%clk 0:00:05]}  Rf6 {[%clk 0:00:29]} 45. Qd4 {[%clk 0:00:04]}  Rfg6 {[%clk 0:00:29]} 46. Qe5 {[%clk 0:00:05]}  Kh6 {[%clk 0:00:28]} 47. Qf4+ {[%clk 0:00:05]}  Kh7 {[%clk 0:00:28]} 48. Qe5 {[%clk 0:00:05]}  Rh6 {[%clk 0:00:28]} 49. Qf4 {[%clk 0:00:04]}  Rg7 {[%clk 0:00:27]} 50. Qh4 {[%clk 0:00:04]}  Rg8 {[%clk 0:00:22]} 51. Qf4 {[%clk 0:00:04]}  h4 {[%clk 0:00:20]} 52. Qxf7+ {[%clk 0:00:03]}  Rg7 {[%clk 0:00:21]} 53. Qf4 {[%clk 0:00:02]}  h3 {[%clk 0:00:21]} 0-1


[Site "https://www.chess.com"]

[Event "Titled Tuesday Blitz March 01 Late 2022"]
[White "Janaszak, Dawid"]
[Black "Szente Varga, Fruzsina"]
[WhiteFideId "1119206"]
[BlackFideId "712264"]
[WhiteElo "2199"]
[BlackElo "1994"]
[Result "0-1"]
[Round "05"]
[TimeControl "180+1"]
[Date "2022.03.02"]
[WhiteClock "0:00:01"]
[BlackClock "0:00:35"]

1. e4 {[%clk 0:03:00]}  Nf6 {[%clk 0:02:56]} 2. e5 {[%clk 0:02:58]}  Nd5 {[%clk 0:02:56]} 3. d4 {[%clk 0:02:58]}  d6 {[%clk 0:02:57]} 4. Nf3 {[%clk 0:02:59]}  g6 {[%clk 0:02:57]} 5. Be2 {[%clk 0:02:41]}  Bg7 {[%clk 0:02:56]} 6. O-O {[%clk 0:02:41]}  O-O {[%clk 0:02:56]} 7. Re1 {[%clk 0:02:36]}  c5 {[%clk 0:02:46]} 8. exd6 {[%clk 0:02:34]}  exd6 {[%clk 0:02:43]} 9. Nc3 {[%clk 0:02:30]}  Nxc3 {[%clk 0:02:40]} 10. bxc3 {[%clk 0:02:31]}  Nc6 {[%clk 0:02:36]} 11. Bg5 {[%clk 0:02:24]}  Qa5 {[%clk 0:02:27]} 12. Bd2 {[%clk 0:02:07]}  Bg4 {[%clk 0:02:21]} 13. h3 {[%clk 0:02:01]}  Bxf3 {[%clk 0:02:19]} 14. Bxf3 {[%clk 0:02:02]}  Qc7 {[%clk 0:02:18]} 15. Be3 {[%clk 0:01:53]}  Na5 {[%clk 0:02:04]} 16. Rb1 {[%clk 0:01:48]}  Rad8 {[%clk 0:01:55]} 17. Bg5 {[%clk 0:01:40]}  Rde8 {[%clk 0:01:52]} 18. Qd3 {[%clk 0:01:34]}  Nc6 {[%clk 0:01:30]} 19. Qc4 {[%clk 0:01:02]}  b6 {[%clk 0:01:25]} 20. Bf4 {[%clk 0:00:59]}  Na5 {[%clk 0:01:18]} 21. Qd5 {[%clk 0:00:54]}  Rd8 {[%clk 0:01:17]} 22. Bg5 {[%clk 0:00:46]}  Rde8 {[%clk 0:01:16]} 23. Bf4 {[%clk 0:00:34]}  Rd8 {[%clk 0:01:06]} 24. h4 {[%clk 0:00:35]}  cxd4 {[%clk 0:01:02]} 25. cxd4 {[%clk 0:00:36]}  Qxc2 {[%clk 0:01:02]} 26. Rbc1 {[%clk 0:00:36]}  Qb2 {[%clk 0:00:59]} 27. Bxd6 {[%clk 0:00:31]}  Bxd4 {[%clk 0:00:50]} 28. Be2 {[%clk 0:00:14]}  Bc5 {[%clk 0:00:45]} 29. Rxc5 {[%clk 0:00:12]}  bxc5 {[%clk 0:00:45]} 30. Qxc5 {[%clk 0:00:13]}  Nb7 {[%clk 0:00:45]} 31. Qa3 {[%clk 0:00:12]}  Qd2 {[%clk 0:00:40]} 32. Rb1 {[%clk 0:00:04]}  Nxd6 {[%clk 0:00:39]} 33. Bf3 {[%clk 0:00:03]}  Nf5 {[%clk 0:00:37]} 34. g3 {[%clk 0:00:02]}  Rd3 {[%clk 0:00:36]} 35. Qxa7 {[%clk 0:00:01]}  Rxf3 {[%clk 0:00:35]} 0-1


[Site "https://www.chess.com"]

[Event "Titled Tuesday Blitz March 01 Late 2022"]
[White "Jaracz, Pawel"]
[Black "Tomb, Maroun"]
[WhiteFideId "1102222"]
[BlackFideId "5300398"]
[WhiteElo "2429"]
[BlackElo "2566"]
[Result "1-0"]
[Round "05"]
[TimeControl "180+1"]
[Date "2022.03.01"]
[WhiteClock "0:00:22"]
[BlackClock "0:00:08"]

1. e4 {[%clk 0:03:00]}  d6 {[%clk 0:03:00]} 2. d4 {[%clk 0:03:00]}  Nf6 {[%clk 0:03:01]} 3. Nc3 {[%clk 0:03:00]}  e5 {[%clk 0:03:01]} 4. Nf3 {[%clk 0:02:59]}  Nbd7 {[%clk 0:03:00]} 5. a4 {[%clk 0:02:56]}  Be7 {[%clk 0:03:00]} 6. Bc4 {[%clk 0:02:57]}  c6 {[%clk 0:03:00]} 7. O-O {[%clk 0:02:55]}  h6 {[%clk 0:03:01]} 8. a5 {[%clk 0:02:54]}  Qc7 {[%clk 0:03:01]} 9. Qe2 {[%clk 0:02:53]}  Nf8 {[%clk 0:03:01]} 10. Rd1 {[%clk 0:02:50]}  Ng6 {[%clk 0:03:01]} 11. d5 {[%clk 0:02:41]}  O-O {[%clk 0:02:59]} 12. Bb3 {[%clk 0:02:35]}  Nh5 {[%clk 0:02:57]} 13. a6 {[%clk 0:02:28]}  Nhf4 {[%clk 0:02:53]} 14. Qc4 {[%clk 0:02:12]}  c5 {[%clk 0:02:48]} 15. axb7 {[%clk 0:02:04]}  Qxb7 {[%clk 0:02:39]} 16. Ba4 {[%clk 0:02:02]}  Bd7 {[%clk 0:02:37]} 17. g3 {[%clk 0:01:54]}  Bg4 {[%clk 0:02:25]} 18. Bc6 {[%clk 0:01:48]}  Qc8 {[%clk 0:02:24]} 19. Ne1 {[%clk 0:01:35]}  Bxd1 {[%clk 0:01:49]} 20. Nxd1 {[%clk 0:01:33]}  Nh3+ {[%clk 0:01:39]} 21. Kg2 {[%clk 0:01:31]}  Qg4 {[%clk 0:01:28]} 22. Ne3 {[%clk 0:01:09]}  Ngf4+ {[%clk 0:00:42]} 23. Kf1 {[%clk 0:01:08]}  Qh5 {[%clk 0:00:38]} 24. gxf4 {[%clk 0:00:55]}  Nxf4 {[%clk 0:00:33]} 25. N3g2 {[%clk 0:00:53]}  Qxh2 {[%clk 0:00:29]} 26. Bxf4 {[%clk 0:00:50]}  exf4 {[%clk 0:00:30]} 27. Bxa8 {[%clk 0:00:44]}  f3 {[%clk 0:00:30]} 28. Nxf3 {[%clk 0:00:44]}  Qh1+ {[%clk 0:00:21]} 29. Ng1 {[%clk 0:00:44]}  Rxa8 {[%clk 0:00:21]} 30. Qb3 {[%clk 0:00:37]}  h5 {[%clk 0:00:19]} 31. Qb7 {[%clk 0:00:35]}  Re8 {[%clk 0:00:20]} 32. Qd7 {[%clk 0:00:34]}  Kf8 {[%clk 0:00:19]} 33. Ra3 {[%clk 0:00:33]}  Qh2 {[%clk 0:00:17]} 34. Rg3 {[%clk 0:00:29]}  h4 {[%clk 0:00:16]} 35. Rf3 {[%clk 0:00:24]}  g5 {[%clk 0:00:13]} 36. Qf5 {[%clk 0:00:23]}  Qe5 {[%clk 0:00:08]} 37. Qxf7# {[%clk 0:00:22]} 1-0


[Site "https://www.chess.com"]

[Event "Titled Tuesday Blitz March 01 Late 2022"]
[White "Jarocka, Liwia"]
[Black "Cagara, Paulina"]
[WhiteFideId "21807558"]
[BlackFideId "1124870"]
[WhiteElo "1896"]
[BlackElo "1828"]
[Result "0-1"]
[Round "05"]
[TimeControl "180+1"]
[Date "2022.03.02"]
[WhiteClock "0:01:16"]
[BlackClock "0:01:02"]

1. d4 {[%clk 0:03:00]}  f5 {[%clk 0:02:59]} 2. Nf3 {[%clk 0:03:00]}  Nf6 {[%clk 0:02:58]} 3. g3 {[%clk 0:03:01]}  g6 {[%clk 0:02:58]} 4. Bg2 {[%clk 0:03:01]}  d6 {[%clk 0:02:58]} 5. O-O {[%clk 0:03:01]}  Bg7 {[%clk 0:02:58]} 6. c4 {[%clk 0:03:01]}  O-O {[%clk 0:02:58]} 7. Nc3 {[%clk 0:03:01]}  Qe8 {[%clk 0:02:58]} 8. b3 {[%clk 0:03:00]}  h6 {[%clk 0:02:56]} 9. Bb2 {[%clk 0:03:00]}  g5 {[%clk 0:02:56]} 10. d5 {[%clk 0:03:00]}  a5 {[%clk 0:02:55]} 11. Rc1 {[%clk 0:02:59]}  Na6 {[%clk 0:02:54]} 12. Nb5 {[%clk 0:02:59]}  Bd7 {[%clk 0:02:51]} 13. Nbd4 {[%clk 0:02:56]}  Nc5 {[%clk 0:02:46]} 14. h4 {[%clk 0:02:48]}  Nfe4 {[%clk 0:02:43]} 15. hxg5 {[%clk 0:02:46]}  hxg5 {[%clk 0:02:41]} 16. Nd2 {[%clk 0:02:41]}  Qg6 {[%clk 0:02:28]} 17. Nxe4 {[%clk 0:02:39]}  Nxe4 {[%clk 0:02:28]} 18. Qc2 {[%clk 0:02:34]}  Rae8 {[%clk 0:02:01]} 19. g4 {[%clk 0:02:34]}  Be5 {[%clk 0:01:50]} 20. Nxf5 {[%clk 0:02:30]}  Bxb2 {[%clk 0:01:35]} 21. Qxb2 {[%clk 0:02:29]}  Bxf5 {[%clk 0:01:34]} 22. gxf5 {[%clk 0:02:29]}  Qxf5 {[%clk 0:01:34]} 23. Qc2 {[%clk 0:02:25]}  Nc5 {[%clk 0:01:25]} 24. Qxf5 {[%clk 0:02:24]}  Rxf5 {[%clk 0:01:26]} 25. f3 {[%clk 0:02:20]}  e5 {[%clk 0:01:20]} 26. e4 {[%clk 0:02:17]}  Rf4 {[%clk 0:01:19]} 27. Bh3 {[%clk 0:02:10]}  Kg7 {[%clk 0:01:18]} 28. Rcd1 {[%clk 0:02:08]}  Rh8 {[%clk 0:01:17]} 29. Kh2 {[%clk 0:02:08]}  b6 {[%clk 0:01:11]} 30. Kg2 {[%clk 0:02:05]}  Rfh4 {[%clk 0:01:07]} 31. Rh1 {[%clk 0:02:01]}  Kf6 {[%clk 0:01:04]} 32. Bc8 {[%clk 0:01:15]}  Rxh1 {[%clk 0:01:03]} 33. Rxh1 {[%clk 0:01:16]}  Rxc8 {[%clk 0:01:02]} 0-1


[Site "https://www.chess.com"]

[Event "Titled Tuesday Blitz March 01 Late 2022"]
[White "Jaskolka, Tomasz"]
[Black "Kim, Sergey"]
[WhiteFideId "1170791"]
[BlackFideId "13700570"]
[WhiteElo "2054"]
[BlackElo "2614"]
[Result "1/2-1/2"]
[Round "05"]
[TimeControl "180+1"]
[Date "2022.03.02"]
[WhiteClock "0:00:06"]
[BlackClock "0:00:33"]

1. d4 {[%clk 0:03:00]}  Nf6 {[%clk 0:02:59]} 2. Bf4 {[%clk 0:02:59]}  g6 {[%clk 0:02:59]} 3. Nc3 {[%clk 0:02:59]}  d6 {[%clk 0:02:58]} 4. e4 {[%clk 0:02:59]}  c6 {[%clk 0:02:58]} 5. Qd2 {[%clk 0:02:58]}  b5 {[%clk 0:02:55]} 6. f3 {[%clk 0:02:57]}  b4 {[%clk 0:02:53]} 7. Nd1 {[%clk 0:02:56]}  a5 {[%clk 0:02:53]} 8. Bd3 {[%clk 0:02:50]}  Nbd7 {[%clk 0:02:49]} 9. Ne2 {[%clk 0:02:50]}  e5 {[%clk 0:02:48]} 10. Be3 {[%clk 0:02:40]}  h5 {[%clk 0:02:44]} 11. Nf2 {[%clk 0:02:39]}  Bg7 {[%clk 0:02:43]} 12. O-O {[%clk 0:02:38]}  O-O {[%clk 0:02:42]} 13. a3 {[%clk 0:02:29]}  Rb8 {[%clk 0:02:35]} 14. axb4 {[%clk 0:02:27]}  axb4 {[%clk 0:02:35]} 15. Bc4 {[%clk 0:02:12]}  c5 {[%clk 0:02:29]} 16. dxc5 {[%clk 0:02:07]}  dxc5 {[%clk 0:02:17]} 17. Rfd1 {[%clk 0:02:05]}  Qc7 {[%clk 0:02:15]} 18. Qd6 {[%clk 0:01:58]}  Qxd6 {[%clk 0:02:15]} 19. Rxd6 {[%clk 0:01:59]}  Nb6 {[%clk 0:02:02]} 20. Rxb6 {[%clk 0:01:44]}  Rxb6 {[%clk 0:02:01]} 21. Bxc5 {[%clk 0:01:44]}  Rc6 {[%clk 0:02:02]} 22. Bxf8 {[%clk 0:01:45]}  Rxc4 {[%clk 0:01:58]} 23. Bxg7 {[%clk 0:01:45]}  Kxg7 {[%clk 0:01:58]} 24. c3 {[%clk 0:01:39]}  bxc3 {[%clk 0:01:58]} 25. bxc3 {[%clk 0:01:33]}  Be6 {[%clk 0:01:53]} 26. Nd3 {[%clk 0:01:19]}  Nd7 {[%clk 0:01:53]} 27. Kf2 {[%clk 0:01:11]}  Kf6 {[%clk 0:01:52]} 28. Ke3 {[%clk 0:01:11]}  Rc6 {[%clk 0:01:46]} 29. Nb4 {[%clk 0:01:07]}  Rd6 {[%clk 0:01:42]} 30. g3 {[%clk 0:00:57]}  Nb6 {[%clk 0:01:42]} 31. f4 {[%clk 0:00:32]}  Nc4+ {[%clk 0:01:41]} 32. Kf2 {[%clk 0:00:32]}  Rd2 {[%clk 0:01:33]} 33. Ra6 {[%clk 0:00:24]}  Kg7 {[%clk 0:01:27]} 34. Rc6 {[%clk 0:00:14]}  Bg4 {[%clk 0:01:19]} 35. Rxc4 {[%clk 0:00:14]}  Rxe2+ {[%clk 0:01:16]} 36. Kg1 {[%clk 0:00:14]}  h4 {[%clk 0:01:08]} 37. Nd3 {[%clk 0:00:12]}  h3 {[%clk 0:01:00]} 38. Nxe5 {[%clk 0:00:10]}  Rg2+ {[%clk 0:01:00]} 39. Kf1 {[%clk 0:00:08]}  Be2+ {[%clk 0:01:00]} 40. Ke1 {[%clk 0:00:07]}  Bxc4 {[%clk 0:01:00]} 41. Nxc4 {[%clk 0:00:08]}  Rxh2 {[%clk 0:01:00]} 42. Ne3 {[%clk 0:00:09]}  Rh1+ {[%clk 0:00:57]} 43. Kf2 {[%clk 0:00:09]}  Rc1 {[%clk 0:00:55]} 44. Nf1 {[%clk 0:00:08]}  Rxc3 {[%clk 0:00:53]} 45. g4 {[%clk 0:00:07]}  Rc1 {[%clk 0:00:49]} 46. Nh2 {[%clk 0:00:06]}  Rc3 {[%clk 0:00:46]} 47. e5 {[%clk 0:00:05]}  g5 {[%clk 0:00:44]} 48. f5 {[%clk 0:00:05]}  Rc5 {[%clk 0:00:43]} 49. Nf3 {[%clk 0:00:05]}  Rc2+ {[%clk 0:00:40]} 50. Kg3 {[%clk 0:00:05]}  Rc3 {[%clk 0:00:40]} 51. Kf2 {[%clk 0:00:05]}  Rc2+ {[%clk 0:00:38]} 52. Kg3 {[%clk 0:00:06]}  Rc3 {[%clk 0:00:38]} 53. Kf2 {[%clk 0:00:06]}  Rc5 {[%clk 0:00:37]} 54. Kg3 {[%clk 0:00:06]}  Rc3 {[%clk 0:00:33]} 1/2-1/2


[Site "https://www.chess.com"]

[Event "Titled Tuesday Blitz March 01 Late 2022"]
[White "Jones, Gawain C B"]
[Black "Aukhatov, Roman"]
[WhiteFideId "409561"]
[BlackFideId "44150768"]
[WhiteElo "2657"]
[BlackElo "2112"]
[Result "0-1"]
[Round "05"]
[TimeControl "180+1"]
[Date "2022.03.01"]
[WhiteClock "0:00:05"]
[BlackClock "0:01:04"]

1. Nf3 {[%clk 0:00:58]}  Nf6 {[%clk 0:02:59]} 2. g3 {[%clk 0:00:58]}  d5 {[%clk 0:02:58]} 3. Bg2 {[%clk 0:00:58]}  b5 {[%clk 0:02:58]} 4. a4 {[%clk 0:00:57]}  b4 {[%clk 0:02:58]} 5. d4 {[%clk 0:00:56]}  Bb7 {[%clk 0:02:55]} 6. Nbd2 {[%clk 0:00:56]}  e6 {[%clk 0:02:51]} 7. Nb3 {[%clk 0:00:56]}  Nbd7 {[%clk 0:02:50]} 8. Na5 {[%clk 0:00:56]}  Ba6 {[%clk 0:02:49]} 9. Nc6 {[%clk 0:00:51]}  Qc8 {[%clk 0:02:49]} 10. Bd2 {[%clk 0:00:45]}  Qb7 {[%clk 0:02:48]} 11. Nce5 {[%clk 0:00:44]}  c5 {[%clk 0:02:47]} 12. O-O {[%clk 0:00:39]}  Be7 {[%clk 0:02:46]} 13. c3 {[%clk 0:00:33]}  cxd4 {[%clk 0:02:42]} 14. cxd4 {[%clk 0:00:28]}  O-O {[%clk 0:02:41]} 15. Rc1 {[%clk 0:00:25]}  Rac8 {[%clk 0:02:39]} 16. Rxc8 {[%clk 0:00:19]}  Rxc8 {[%clk 0:02:38]} 17. Bg5 {[%clk 0:00:19]}  h6 {[%clk 0:02:36]} 18. Nxd7 {[%clk 0:00:19]}  Qxd7 {[%clk 0:02:35]} 19. Ne5 {[%clk 0:00:18]}  Qc7 {[%clk 0:02:31]} 20. Bf4 {[%clk 0:00:17]}  Qc2 {[%clk 0:02:31]} 21. Nd3 {[%clk 0:00:13]}  Bxd3 {[%clk 0:02:28]} 22. Qxd3 {[%clk 0:00:14]}  Qxd3 {[%clk 0:02:24]} 23. exd3 {[%clk 0:00:14]}  Rc2 {[%clk 0:02:16]} 24. Rc1 {[%clk 0:00:15]}  Rxc1+ {[%clk 0:02:16]} 25. Bxc1 {[%clk 0:00:15]}  Nd7 {[%clk 0:01:52]} 26. Bd2 {[%clk 0:00:16]}  a5 {[%clk 0:01:46]} 27. f4 {[%clk 0:00:13]}  Nb6 {[%clk 0:01:46]} 28. b3 {[%clk 0:00:13]}  f5 {[%clk 0:01:43]} 29. Kf2 {[%clk 0:00:12]}  Kf7 {[%clk 0:01:43]} 30. Ke3 {[%clk 0:00:12]}  Nc8 {[%clk 0:01:42]} 31. Bf3 {[%clk 0:00:13]}  Na7 {[%clk 0:01:41]} 32. g4 {[%clk 0:00:07]}  g6 {[%clk 0:01:38]} 33. gxf5 {[%clk 0:00:06]}  gxf5 {[%clk 0:01:37]} 34. Bh5+ {[%clk 0:00:06]}  Kf8 {[%clk 0:01:37]} 35. Kf2 {[%clk 0:00:04]}  Nc6 {[%clk 0:01:36]} 36. Be3 {[%clk 0:00:05]}  Bf6 {[%clk 0:01:36]} 37. Kg3 {[%clk 0:00:05]}  Bxd4 {[%clk 0:01:34]} 38. Bc1 {[%clk 0:00:05]}  Nd8 {[%clk 0:01:27]} 39. Bd1 {[%clk 0:00:05]}  Nb7 {[%clk 0:01:26]} 40. Kh4 {[%clk 0:00:05]}  Nc5 {[%clk 0:01:26]} 41. Bc2 {[%clk 0:00:05]}  Kg7 {[%clk 0:01:21]} 42. Kh5 {[%clk 0:00:06]}  Bf2 {[%clk 0:01:14]} 43. Bb2+ {[%clk 0:00:03]}  d4 {[%clk 0:01:14]} 44. Bd1 {[%clk 0:00:01]}  Nd7 {[%clk 0:01:13]} 45. Bxd4+ {[%clk 0:00:01]}  Bxd4 {[%clk 0:01:13]} 46. Kh4 {[%clk 0:00:02]}  Nc5 {[%clk 0:01:12]} 47. Bc2 {[%clk 0:00:01]}  Kg6 {[%clk 0:01:10]} 48. Kg3 {[%clk 0:00:02]}  Kf6 {[%clk 0:01:09]} 49. Kf3 {[%clk 0:00:02]}  e5 {[%clk 0:01:08]} 50. Kg3 {[%clk 0:00:02]}  Be3 {[%clk 0:01:05]} 51. fxe5+ {[%clk 0:00:02]}  Kxe5 {[%clk 0:01:06]} 52. d4+ {[%clk 0:00:02]}  Bxd4 {[%clk 0:01:06]} 53. Kf3 {[%clk 0:00:03]}  Bc3 {[%clk 0:01:05]} 54. h3 {[%clk 0:00:03]}  Bd2 {[%clk 0:01:05]} 55. Ke2 {[%clk 0:00:03]}  Bg5 {[%clk 0:01:04]} 56. Kf3 {[%clk 0:00:04]}  Kd4 {[%clk 0:01:05]} 57. Bxf5 {[%clk 0:00:03]}  Nxb3 {[%clk 0:01:05]} 58. Kg4 {[%clk 0:00:04]}  Nc5 {[%clk 0:01:04]} 59. h4 {[%clk 0:00:05]}  Bc1 {[%clk 0:01:04]} 60. Kf3 {[%clk 0:00:05]}  Nxa4 {[%clk 0:01:04]} 61. Ke2 {[%clk 0:00:05]}  Nc3+ {[%clk 0:01:04]} 0-1


[Site "https://www.chess.com"]

[Event "Titled Tuesday Blitz March 01 Late 2022"]
[White "Kanyamarala, Trisha"]
[Black "Ashiev, Eduard"]
[WhiteFideId "45004722"]
[BlackFideId "4130090"]
[WhiteElo "2002"]
[BlackElo "2004"]
[Result "1-0"]
[Round "05"]
[TimeControl "180+1"]
[Date "2022.03.02"]
[WhiteClock "0:00:53"]
[BlackClock "0:00:02"]

1. d4 {[%clk 0:02:55]}  d6 {[%clk 0:02:59]} 2. c4 {[%clk 0:02:55]}  e5 {[%clk 0:02:59]} 3. Nc3 {[%clk 0:02:55]}  exd4 {[%clk 0:02:59]} 4. Qxd4 {[%clk 0:02:54]}  Nc6 {[%clk 0:02:59]} 5. Qd2 {[%clk 0:02:54]}  Nf6 {[%clk 0:02:57]} 6. Nf3 {[%clk 0:02:55]}  Be6 {[%clk 0:02:54]} 7. e4 {[%clk 0:02:51]}  g6 {[%clk 0:02:54]} 8. Be2 {[%clk 0:02:49]}  Bg7 {[%clk 0:02:54]} 9. O-O {[%clk 0:02:49]}  O-O {[%clk 0:02:53]} 10. b3 {[%clk 0:02:50]}  Nxe4 {[%clk 0:02:34]} 11. Nxe4 {[%clk 0:02:47]}  Bxa1 {[%clk 0:02:34]} 12. Bb2 {[%clk 0:02:47]}  Bxb2 {[%clk 0:02:33]} 13. Qxb2 {[%clk 0:02:48]}  f6 {[%clk 0:02:32]} 14. b4 {[%clk 0:02:38]}  Ne5 {[%clk 0:02:28]} 15. Qc3 {[%clk 0:02:24]}  Qe7 {[%clk 0:02:21]} 16. Nd4 {[%clk 0:02:22]}  Bd7 {[%clk 0:02:13]} 17. f4 {[%clk 0:02:21]}  Nc6 {[%clk 0:02:05]} 18. Bf3 {[%clk 0:02:19]}  Rae8 {[%clk 0:01:50]} 19. Nc2 {[%clk 0:02:18]}  Bf5 {[%clk 0:01:43]} 20. Re1 {[%clk 0:02:13]}  Bxe4 {[%clk 0:01:21]} 21. Bxe4 {[%clk 0:02:11]}  Qxe4 {[%clk 0:01:15]} 22. Rxe4 {[%clk 0:02:10]}  Rxe4 {[%clk 0:01:15]} 23. b5 {[%clk 0:02:06]}  Nd8 {[%clk 0:01:09]} 24. Nb4 {[%clk 0:01:57]}  c6 {[%clk 0:00:53]} 25. Qd3 {[%clk 0:01:50]}  Re6 {[%clk 0:00:45]} 26. a4 {[%clk 0:01:49]}  Rfe8 {[%clk 0:00:42]} 27. h3 {[%clk 0:01:48]}  Kg7 {[%clk 0:00:37]} 28. f5 {[%clk 0:01:45]}  gxf5 {[%clk 0:00:29]} 29. Qxf5 {[%clk 0:01:46]}  h6 {[%clk 0:00:18]} 30. Nd3 {[%clk 0:01:39]}  Nf7 {[%clk 0:00:12]} 31. Nf4 {[%clk 0:01:39]}  Re1+ {[%clk 0:00:12]} 32. Kh2 {[%clk 0:01:39]}  Ne5 {[%clk 0:00:11]} 33. Nh5+ {[%clk 0:01:36]}  Kf8 {[%clk 0:00:02]} 34. Nxf6 {[%clk 0:00:53]} 1-0


[Site "https://www.chess.com"]

[Event "Titled Tuesday Blitz March 01 Late 2022"]
[White "Kosakowski, Jakub"]
[Black "Villegas, Pierre"]
[WhiteFideId "1185080"]
[BlackFideId "654183"]
[WhiteElo "2476"]
[BlackElo "2410"]
[Result "0-1"]
[Round "05"]
[TimeControl "180+1"]
[Date "2022.03.01"]
[WhiteClock "0:00:17"]
[BlackClock "0:00:32"]

1. e4 {[%clk 0:03:00]}  c6 {[%clk 0:02:59]} 2. d4 {[%clk 0:02:53]}  d5 {[%clk 0:02:59]} 3. e5 {[%clk 0:02:53]}  a6 {[%clk 0:02:57]} 4. Bd3 {[%clk 0:02:47]}  c5 {[%clk 0:02:55]} 5. dxc5 {[%clk 0:02:47]}  e6 {[%clk 0:02:55]} 6. Qg4 {[%clk 0:02:42]}  Qc7 {[%clk 0:02:45]} 7. Nf3 {[%clk 0:02:41]}  Nd7 {[%clk 0:02:42]} 8. Bf4 {[%clk 0:02:32]}  Nxc5 {[%clk 0:02:39]} 9. O-O {[%clk 0:02:32]}  Ne7 {[%clk 0:02:37]} 10. Nbd2 {[%clk 0:02:32]}  Ng6 {[%clk 0:02:36]} 11. Bxg6 {[%clk 0:02:00]}  hxg6 {[%clk 0:02:35]} 12. c4 {[%clk 0:02:01]}  Be7 {[%clk 0:02:01]} 13. Be3 {[%clk 0:01:56]}  Nd7 {[%clk 0:01:47]} 14. cxd5 {[%clk 0:01:38]}  Nxe5 {[%clk 0:01:39]} 15. Nxe5 {[%clk 0:01:09]}  Qxe5 {[%clk 0:01:40]} 16. Nf3 {[%clk 0:01:09]}  Qxd5 {[%clk 0:01:39]} 17. Rfd1 {[%clk 0:01:08]}  Qh5 {[%clk 0:01:33]} 18. Qa4+ {[%clk 0:01:08]}  Qb5 {[%clk 0:01:18]} 19. Qxb5+ {[%clk 0:00:58]}  axb5 {[%clk 0:01:19]} 20. Rac1 {[%clk 0:00:58]}  Bd7 {[%clk 0:01:07]} 21. Rc7 {[%clk 0:00:50]}  Bc6 {[%clk 0:01:05]} 22. Ne5 {[%clk 0:00:50]}  Bd5 {[%clk 0:01:00]} 23. Rxd5 {[%clk 0:00:32]}  exd5 {[%clk 0:01:00]} 24. Rxb7 {[%clk 0:00:32]}  Bf6 {[%clk 0:00:48]} 25. Nxf7 {[%clk 0:00:25]}  O-O {[%clk 0:00:48]} 26. Nd6 {[%clk 0:00:25]}  Rxa2 {[%clk 0:00:46]} 27. g3 {[%clk 0:00:23]}  d4 {[%clk 0:00:41]} 28. Bf4 {[%clk 0:00:20]}  g5 {[%clk 0:00:38]} 29. Bd2 {[%clk 0:00:20]}  Rxb2 {[%clk 0:00:38]} 30. Ba5 {[%clk 0:00:20]}  Ra8 {[%clk 0:00:36]} 31. Bb6 {[%clk 0:00:17]}  d3 {[%clk 0:00:34]} 32. Ne4 {[%clk 0:00:17]}  d2 {[%clk 0:00:32]} 33. Rd7 {[%clk 0:00:17]}  Ra1+ {[%clk 0:00:31]} 34. Kg2 {[%clk 0:00:17]}  d1=Q {[%clk 0:00:32]} 0-1


[Site "https://www.chess.com"]